[Event "Titled Tuesday Blitz May 24 Early 2022"]
[White "Jakubowski, Krzysztof"]
[Black "Vakhlamov, Igor L."]
[WhiteFideId "1112848"]
[BlackFideId "24126748"]
[WhiteElo "2365"]
[BlackElo "2401"]
[Result "0-1"]
[Round "10"]
[TimeControl "180+1"]
[Date "2022.05.25"]
[WhiteClock "0:00:59"]
[BlackClock "0:01:39"]

1. e4 {[%clk 0:03:00]}  c5 {[%clk 0:03:00]} 2. Nf3 {[%clk 0:03:00]}  Nc6 {[%clk 0:03:00]} 3. d4 {[%clk 0:03:00]}  cxd4 {[%clk 0:03:01]} 4. Nxd4 {[%clk 0:03:00]}  g6 {[%clk 0:03:02]} 5. c4 {[%clk 0:02:59]}  Nf6 {[%clk 0:03:00]} 6. Nc3 {[%clk 0:02:59]}  d6 {[%clk 0:03:00]} 7. Be2 {[%clk 0:02:57]}  Nxd4 {[%clk 0:03:00]} 8. Qxd4 {[%clk 0:02:57]}  Bg7 {[%clk 0:03:00]} 9. O-O {[%clk 0:02:56]}  O-O {[%clk 0:03:01]} 10. Qd3 {[%clk 0:02:55]}  Be6 {[%clk 0:03:00]} 11. f4 {[%clk 0:02:46]}  Rc8 {[%clk 0:02:52]} 12. Nd5 {[%clk 0:02:38]}  Nxd5 {[%clk 0:02:50]} 13. cxd5 {[%clk 0:02:36]}  Bd7 {[%clk 0:02:50]} 14. Be3 {[%clk 0:02:32]}  a6 {[%clk 0:02:47]} 15. a4 {[%clk 0:02:25]}  b5 {[%clk 0:02:44]} 16. Qd2 {[%clk 0:02:17]}  bxa4 {[%clk 0:02:39]} 17. Bxa6 {[%clk 0:02:14]}  Rb8 {[%clk 0:02:39]} 18. Bd4 {[%clk 0:02:07]}  Bxd4+ {[%clk 0:02:32]} 19. Qxd4 {[%clk 0:02:06]}  Qa5 {[%clk 0:02:33]} 20. Bd3 {[%clk 0:01:56]}  Rb4 {[%clk 0:02:29]} 21. Qf2 {[%clk 0:01:54]}  Rfb8 {[%clk 0:02:24]} 22. Ra2 {[%clk 0:01:50]}  Rb3 {[%clk 0:02:13]} 23. Bc4 {[%clk 0:01:42]}  R3b4 {[%clk 0:02:12]} 24. Bd3 {[%clk 0:01:34]}  Bb5 {[%clk 0:01:57]} 25. Bxb5 {[%clk 0:01:32]}  Qxb5 {[%clk 0:01:58]} 26. Rfa1 {[%clk 0:01:26]}  Rxe4 {[%clk 0:01:55]} 27. h3 {[%clk 0:01:09]}  Qxd5 {[%clk 0:01:53]} 28. Kh2 {[%clk 0:01:06]}  Rbb4 {[%clk 0:01:50]} 29. Ra3 {[%clk 0:01:04]}  Rxf4 {[%clk 0:01:49]} 30. Qg3 {[%clk 0:01:04]}  h5 {[%clk 0:01:44]} 31. Re1 {[%clk 0:01:02]}  h4 {[%clk 0:01:43]} 32. Qc3 {[%clk 0:01:01]}  Rfc4 {[%clk 0:01:40]} 33. Qe3 {[%clk 0:00:59]}  Re4 {[%clk 0:01:39]} 34. Qf2 {[%clk 0:00:59]}  Qe5+ {[%clk 0:01:39]} 0-1


[Site "https://www.chess.com"]

[Event "Titled Tuesday Blitz May 24 Early 2022"]
[White "Jian, Alex"]
[Black "Sarkar, Justin"]
[WhiteFideId "30901022"]
[BlackFideId "2010011"]
[WhiteElo "2111"]
[BlackElo "2020"]
[Result "0-1"]
[Round "10"]
[TimeControl "180+1"]
[Date "2022.05.25"]
[WhiteClock "0:00:02"]
[BlackClock "0:00:10"]

1. Nf3 {[%clk 0:03:00]}  d5 {[%clk 0:02:53]} 2. b3 {[%clk 0:03:00]}  Bg4 {[%clk 0:02:48]} 3. Ne5 {[%clk 0:03:00]}  Bf5 {[%clk 0:02:45]} 4. e3 {[%clk 0:02:53]}  f6 {[%clk 0:02:20]} 5. Nf3 {[%clk 0:02:51]}  e5 {[%clk 0:02:19]} 6. d4 {[%clk 0:02:48]}  e4 {[%clk 0:02:13]} 7. Nfd2 {[%clk 0:02:47]}  Be6 {[%clk 0:02:08]} 8. c4 {[%clk 0:02:46]}  c6 {[%clk 0:02:05]} 9. Nc3 {[%clk 0:02:43]}  f5 {[%clk 0:02:01]} 10. Bb2 {[%clk 0:02:39]}  Nf6 {[%clk 0:01:59]} 11. Be2 {[%clk 0:02:37]}  Bd6 {[%clk 0:01:55]} 12. Rc1 {[%clk 0:02:33]}  a6 {[%clk 0:01:47]} 13. O-O {[%clk 0:02:29]}  f4 {[%clk 0:01:39]} 14. cxd5 {[%clk 0:02:15]}  cxd5 {[%clk 0:01:37]} 15. Na4 {[%clk 0:02:15]}  O-O {[%clk 0:01:31]} 16. Nc5 {[%clk 0:02:10]}  Bc8 {[%clk 0:01:29]} 17. a3 {[%clk 0:01:45]}  b6 {[%clk 0:01:23]} 18. Na4 {[%clk 0:01:44]}  Be6 {[%clk 0:01:08]} 19. b4 {[%clk 0:01:33]}  Ra7 {[%clk 0:01:05]} 20. Rc2 {[%clk 0:01:26]}  Raf7 {[%clk 0:01:01]} 21. Nb3 {[%clk 0:00:59]}  f3 {[%clk 0:00:51]} 22. gxf3 {[%clk 0:00:57]}  exf3 {[%clk 0:00:51]} 23. Bxf3 {[%clk 0:00:58]}  Ne4 {[%clk 0:00:51]} 24. Bxe4 {[%clk 0:00:18]}  dxe4 {[%clk 0:00:41]} 25. d5 {[%clk 0:00:19]}  Bxh2+ {[%clk 0:00:26]} 26. Kxh2 {[%clk 0:00:14]}  Qh4+ {[%clk 0:00:25]} 27. Kg1 {[%clk 0:00:14]}  Qg5+ {[%clk 0:00:16]} 28. Kh1 {[%clk 0:00:11]}  Rf3 {[%clk 0:00:14]} 29. Be5 {[%clk 0:00:03]}  Qxe5 {[%clk 0:00:11]} 30. dxe6 {[%clk 0:00:03]}  Qh5+ {[%clk 0:00:10]} 31. Kg1 {[%clk 0:00:02]}  Qg4+ {[%clk 0:00:09]} 32. Kh1 {[%clk 0:00:02]}  Rh3# {[%clk 0:00:10]} 0-1


[Site "https://www.chess.com"]

[Event "Titled Tuesday Blitz May 24 Early 2022"]
[White "Kejzar, Petra"]
[Black "Kucuksari, Kaan"]
[WhiteFideId "14610213"]
[BlackFideId "6380166"]
[WhiteElo "2004"]
[BlackElo "2305"]
[Result "0-1"]
[Round "10"]
[TimeControl "180+1"]
[Date "2022.05.25"]
[WhiteClock "0:00:03"]
[BlackClock "0:01:54"]

1. c4 {[%clk 0:03:00]}  e5 {[%clk 0:02:56]} 2. Nc3 {[%clk 0:02:58]}  c6 {[%clk 0:02:52]} 3. d4 {[%clk 0:02:53]}  exd4 {[%clk 0:02:52]} 4. Qxd4 {[%clk 0:02:53]}  Nf6 {[%clk 0:02:52]} 5. e4 {[%clk 0:02:51]}  d6 {[%clk 0:02:49]} 6. Nf3 {[%clk 0:02:44]}  Be6 {[%clk 0:02:49]} 7. Be2 {[%clk 0:02:43]}  Nbd7 {[%clk 0:02:49]} 8. O-O {[%clk 0:02:43]}  Be7 {[%clk 0:02:48]} 9. Bf4 {[%clk 0:02:41]}  Nc5 {[%clk 0:02:46]} 10. b4 {[%clk 0:02:35]}  Na6 {[%clk 0:02:44]} 11. a3 {[%clk 0:02:29]}  O-O {[%clk 0:02:44]} 12. Rfd1 {[%clk 0:02:26]}  c5 {[%clk 0:02:42]} 13. Qd2 {[%clk 0:02:16]}  cxb4 {[%clk 0:02:41]} 14. axb4 {[%clk 0:02:16]}  Nxb4 {[%clk 0:02:42]} 15. Rab1 {[%clk 0:02:13]}  a5 {[%clk 0:02:42]} 16. Bxd6 {[%clk 0:02:09]}  Bxd6 {[%clk 0:02:43]} 17. Qxd6 {[%clk 0:02:08]}  Qxd6 {[%clk 0:02:43]} 18. Rxd6 {[%clk 0:02:08]}  Rfd8 {[%clk 0:02:44]} 19. Rb6 {[%clk 0:02:04]}  Nd7 {[%clk 0:02:42]} 20. Rxb7 {[%clk 0:01:51]}  Nc5 {[%clk 0:02:43]} 21. Rb5 {[%clk 0:01:51]}  Ncd3 {[%clk 0:02:42]} 22. Nd5 {[%clk 0:01:45]}  Bxd5 {[%clk 0:02:38]} 23. cxd5 {[%clk 0:01:41]}  a4 {[%clk 0:02:35]} 24. R5xb4 {[%clk 0:01:01]}  Nxb4 {[%clk 0:02:36]} 25. Rxb4 {[%clk 0:01:02]}  a3 {[%clk 0:02:37]} 26. Bc4 {[%clk 0:01:01]}  a2 {[%clk 0:02:37]} 27. Bxa2 {[%clk 0:01:02]}  Rxa2 {[%clk 0:02:37]} 28. g3 {[%clk 0:01:03]}  f5 {[%clk 0:02:36]} 29. exf5 {[%clk 0:00:51]}  Rxd5 {[%clk 0:02:37]} 30. Ng5 {[%clk 0:00:52]}  Rd8 {[%clk 0:02:34]} 31. Ne6 {[%clk 0:00:51]}  Rd7 {[%clk 0:02:32]} 32. Ng5 {[%clk 0:00:50]}  Ra8 {[%clk 0:02:29]} 33. Kg2 {[%clk 0:00:50]}  h6 {[%clk 0:02:29]} 34. Ne6 {[%clk 0:00:49]}  Kf7 {[%clk 0:02:29]} 35. Nf4 {[%clk 0:00:43]}  Ra2 {[%clk 0:02:28]} 36. Rb3 {[%clk 0:00:22]}  Rdd2 {[%clk 0:02:25]} 37. Rf3 {[%clk 0:00:19]}  Kf6 {[%clk 0:02:22]} 38. Nh5+ {[%clk 0:00:17]}  Kf7 {[%clk 0:02:22]} 39. g4 {[%clk 0:00:16]}  Rd1 {[%clk 0:02:17]} 40. Kg3 {[%clk 0:00:16]}  Rg1+ {[%clk 0:02:16]} 41. Kh4 {[%clk 0:00:15]}  Rg2 {[%clk 0:02:14]} 42. Kh3 {[%clk 0:00:15]}  Raxf2 {[%clk 0:02:13]} 43. Rxf2 {[%clk 0:00:14]}  Rxf2 {[%clk 0:02:14]} 44. Kg3 {[%clk 0:00:14]}  Ra2 {[%clk 0:02:14]} 45. Nf4 {[%clk 0:00:14]}  Ra3+ {[%clk 0:02:14]} 46. Kh4 {[%clk 0:00:13]}  Ra2 {[%clk 0:02:15]} 47. Nh5 {[%clk 0:00:12]}  Ra4 {[%clk 0:02:16]} 48. h3 {[%clk 0:00:12]}  Ra7 {[%clk 0:02:08]} 49. Nf4 {[%clk 0:00:09]}  Kf6 {[%clk 0:02:09]} 50. Nh5+ {[%clk 0:00:09]}  Ke5 {[%clk 0:02:10]} 51. Kg3 {[%clk 0:00:07]}  Ra3+ {[%clk 0:02:09]} 52. Kh4 {[%clk 0:00:07]}  Ra7 {[%clk 0:02:10]} 53. Kg3 {[%clk 0:00:07]}  Ke4 {[%clk 0:02:11]} 54. f6 {[%clk 0:00:06]}  g6 {[%clk 0:02:09]} 55. Ng7 {[%clk 0:00:04]}  Ke5 {[%clk 0:02:00]} 56. Ne8 {[%clk 0:00:03]}  Ke6 {[%clk 0:01:56]} 57. f7 {[%clk 0:00:02]}  Rxf7 {[%clk 0:01:54]} 58. Nd6 {[%clk 0:00:03]}  Kxd6 {[%clk 0:01:54]} 0-1


[Site "https://www.chess.com"]

[Event "Titled Tuesday Blitz May 24 Early 2022"]
[White "Kim, Sergey"]
[Black "Keller, Peter"]
[WhiteFideId "13700570"]
[BlackFideId "1272105"]
[WhiteElo "2531"]
[BlackElo "2275"]
[Result "1/2-1/2"]
[Round "10"]
[TimeControl "180+1"]
[Date "2022.05.25"]
[WhiteClock "0:00:04"]
[BlackClock "0:00:06"]

1. d4 {[%clk 0:03:00]}  d5 {[%clk 0:02:58]} 2. c4 {[%clk 0:03:01]}  c6 {[%clk 0:02:58]} 3. Nf3 {[%clk 0:03:00]}  Nf6 {[%clk 0:02:59]} 4. Qc2 {[%clk 0:02:59]}  dxc4 {[%clk 0:02:57]} 5. Qxc4 {[%clk 0:02:58]}  Bg4 {[%clk 0:02:57]} 6. Nbd2 {[%clk 0:02:57]}  Nbd7 {[%clk 0:02:54]} 7. g3 {[%clk 0:02:57]}  e6 {[%clk 0:02:52]} 8. Bg2 {[%clk 0:02:57]}  Be7 {[%clk 0:02:32]} 9. O-O {[%clk 0:02:56]}  O-O {[%clk 0:02:32]} 10. e4 {[%clk 0:02:56]}  Rc8 {[%clk 0:02:24]} 11. Qb3 {[%clk 0:02:31]}  Qb6 {[%clk 0:02:14]} 12. e5 {[%clk 0:02:24]}  Nd5 {[%clk 0:02:07]} 13. Nc4 {[%clk 0:02:16]}  Qc7 {[%clk 0:01:37]} 14. Ne3 {[%clk 0:02:07]}  Bxf3 {[%clk 0:01:21]} 15. Bxf3 {[%clk 0:02:06]}  N7b6 {[%clk 0:01:16]} 16. Bd2 {[%clk 0:02:00]}  Rfd8 {[%clk 0:01:14]} 17. Rac1 {[%clk 0:01:58]}  Qd7 {[%clk 0:01:13]} 18. Ba5 {[%clk 0:01:54]}  Re8 {[%clk 0:01:04]} 19. Rfd1 {[%clk 0:01:33]}  h6 {[%clk 0:01:03]} 20. Bg2 {[%clk 0:01:32]}  Bg5 {[%clk 0:01:00]} 21. f4 {[%clk 0:01:31]}  Nxe3 {[%clk 0:00:56]} 22. Qxe3 {[%clk 0:01:30]}  Be7 {[%clk 0:00:56]} 23. Kh1 {[%clk 0:01:21]}  Nd5 {[%clk 0:00:55]} 24. Qd2 {[%clk 0:01:14]}  b6 {[%clk 0:00:55]} 25. Bc3 {[%clk 0:01:14]}  Red8 {[%clk 0:00:54]} 26. Qf2 {[%clk 0:01:06]}  c5 {[%clk 0:00:50]} 27. dxc5 {[%clk 0:00:53]}  Bxc5 {[%clk 0:00:51]} 28. Qe2 {[%clk 0:00:53]}  Qa4 {[%clk 0:00:48]} 29. Bxd5 {[%clk 0:00:47]}  Rxd5 {[%clk 0:00:31]} 30. Rxd5 {[%clk 0:00:44]}  exd5 {[%clk 0:00:32]} 31. a3 {[%clk 0:00:28]}  d4 {[%clk 0:00:30]} 32. Be1 {[%clk 0:00:23]}  Rd8 {[%clk 0:00:26]} 33. Qd3 {[%clk 0:00:19]}  a5 {[%clk 0:00:19]} 34. Kg1 {[%clk 0:00:18]}  Qd7 {[%clk 0:00:17]} 35. Bf2 {[%clk 0:00:18]}  Qd5 {[%clk 0:00:17]} 36. Rc4 {[%clk 0:00:16]}  b5 {[%clk 0:00:14]} 37. Rc1 {[%clk 0:00:16]}  b4 {[%clk 0:00:14]} 38. a4 {[%clk 0:00:15]}  Bb6 {[%clk 0:00:13]} 39. b3 {[%clk 0:00:15]}  Qd7 {[%clk 0:00:12]} 40. Rc4 {[%clk 0:00:15]}  Rc8 {[%clk 0:00:10]} 41. Rxc8+ {[%clk 0:00:13]}  Qxc8 {[%clk 0:00:11]} 42. Kg2 {[%clk 0:00:13]}  Qc6+ {[%clk 0:00:09]} 43. Qf3 {[%clk 0:00:12]}  Qd7 {[%clk 0:00:08]} 44. Qd3 {[%clk 0:00:12]}  Kf8 {[%clk 0:00:08]} 45. f5 {[%clk 0:00:11]}  Qd5+ {[%clk 0:00:08]} 46. Qf3 {[%clk 0:00:10]}  Qxe5 {[%clk 0:00:06]} 47. Qa8+ {[%clk 0:00:10]}  Qe8 {[%clk 0:00:07]} 48. Qd5 {[%clk 0:00:08]}  Qd8 {[%clk 0:00:06]} 49. Qc6 {[%clk 0:00:06]}  Kg8 {[%clk 0:00:05]} 50. g4 {[%clk 0:00:04]}  f6 {[%clk 0:00:06]} 51. h4 {[%clk 0:00:04]}  d3 {[%clk 0:00:06]} 52. Bxb6 {[%clk 0:00:04]}  d2 {[%clk 0:00:04]} 53. Bxd8 {[%clk 0:00:04]}  d1=Q {[%clk 0:00:05]} 54. Qe6+ {[%clk 0:00:04]}  Kh7 {[%clk 0:00:04]} 55. Qe8 {[%clk 0:00:04]}  Qd2+ {[%clk 0:00:04]} 56. Kf3 {[%clk 0:00:04]}  Qd3+ {[%clk 0:00:05]} 57. Kf2 {[%clk 0:00:04]}  Qd2+ {[%clk 0:00:05]} 58. Kf3 {[%clk 0:00:04]}  Qd3+ {[%clk 0:00:06]} 59. Kf2 {[%clk 0:00:04]}  Qd2+ {[%clk 0:00:06]} 60. Kf3 {[%clk 0:00:04]} 1/2-1/2


[Site "https://www.chess.com"]

[Event "Titled Tuesday Blitz May 24 Early 2022"]
[White "Kollars, Dmitrij"]
[Black "Grischuk, Alexander"]
[WhiteFideId "12909572"]
[BlackFideId "4126025"]
[WhiteElo "2584"]
[BlackElo "2762"]
[Result "0-1"]
[Round "10"]
[TimeControl "180+1"]
[Date "2022.05.24"]
[WhiteClock "0:00:06"]
[BlackClock "0:00:22"]

1. e4 {[%clk 0:03:00]}  e6 {[%clk 0:02:59]} 2. d4 {[%clk 0:02:59]}  d5 {[%clk 0:03:00]} 3. Nc3 {[%clk 0:03:00]}  Nf6 {[%clk 0:03:00]} 4. e5 {[%clk 0:03:00]}  Nfd7 {[%clk 0:03:00]} 5. f4 {[%clk 0:03:01]}  c5 {[%clk 0:03:00]} 6. Nf3 {[%clk 0:03:01]}  Nc6 {[%clk 0:03:01]} 7. Be3 {[%clk 0:03:02]}  cxd4 {[%clk 0:03:01]} 8. Nxd4 {[%clk 0:03:03]}  Qb6 {[%clk 0:03:01]} 9. Qd2 {[%clk 0:02:59]}  Qxb2 {[%clk 0:03:01]} 10. Rb1 {[%clk 0:03:00]}  Qa3 {[%clk 0:03:02]} 11. Bb5 {[%clk 0:02:59]}  Nxd4 {[%clk 0:03:02]} 12. Bxd4 {[%clk 0:03:00]}  a6 {[%clk 0:03:02]} 13. Bxd7+ {[%clk 0:02:59]}  Bxd7 {[%clk 0:03:03]} 14. Rb3 {[%clk 0:02:59]}  Qe7 {[%clk 0:03:03]} 15. Rxb7 {[%clk 0:02:59]}  Qh4+ {[%clk 0:03:03]} 16. Qf2 {[%clk 0:02:54]}  Qxf2+ {[%clk 0:03:03]} 17. Kxf2 {[%clk 0:02:55]}  Be7 {[%clk 0:02:55]} 18. Rhb1 {[%clk 0:02:53]}  Bd8 {[%clk 0:02:49]} 19. Rb8 {[%clk 0:02:37]}  Rxb8 {[%clk 0:02:49]} 20. Rxb8 {[%clk 0:02:37]}  O-O {[%clk 0:02:49]} 21. Ra8 {[%clk 0:02:36]}  Ba5 {[%clk 0:02:35]} 22. Rxa6 {[%clk 0:02:35]}  Bxc3 {[%clk 0:02:35]} 23. Bxc3 {[%clk 0:02:36]}  Rc8 {[%clk 0:02:34]} 24. Ra3 {[%clk 0:02:29]}  h5 {[%clk 0:02:28]} 25. Ke3 {[%clk 0:02:21]}  Rc4 {[%clk 0:02:27]} 26. g3 {[%clk 0:02:10]}  Kh7 {[%clk 0:02:16]} 27. Kd2 {[%clk 0:01:44]}  Ba4 {[%clk 0:02:15]} 28. Ke3 {[%clk 0:01:09]}  Bxc2 {[%clk 0:01:58]} 29. Bd4 {[%clk 0:01:08]}  Ba4 {[%clk 0:01:32]} 30. Rc3 {[%clk 0:01:01]}  Rb4 {[%clk 0:01:32]} 31. Rc7 {[%clk 0:00:48]}  Kg6 {[%clk 0:01:32]} 32. Ra7 {[%clk 0:00:48]}  Bc2 {[%clk 0:01:20]} 33. Bc3 {[%clk 0:00:33]}  Rc4 {[%clk 0:01:10]} 34. Bd4 {[%clk 0:00:33]}  Be4 {[%clk 0:00:54]} 35. a4 {[%clk 0:00:32]}  Rc2 {[%clk 0:00:55]} 36. Rb7 {[%clk 0:00:15]}  Rxh2 {[%clk 0:00:50]} 37. Rb2 {[%clk 0:00:15]}  Rh3 {[%clk 0:00:45]} 38. Kf2 {[%clk 0:00:15]}  h4 {[%clk 0:00:44]} 39. gxh4 {[%clk 0:00:15]}  Ra3 {[%clk 0:00:40]} 40. Rb4 {[%clk 0:00:14]}  Kf5 {[%clk 0:00:40]} 41. Be3 {[%clk 0:00:12]}  Kg4 {[%clk 0:00:37]} 42. Rb7 {[%clk 0:00:12]}  Ra2+ {[%clk 0:00:35]} 43. Ke1 {[%clk 0:00:11]}  Kf3 {[%clk 0:00:35]} 44. Bb6 {[%clk 0:00:10]}  d4 {[%clk 0:00:23]} 45. Bxd4 {[%clk 0:00:06]}  Bxb7 {[%clk 0:00:22]} 0-1


[Site "https://www.chess.com"]

[Event "Titled Tuesday Blitz May 24 Early 2022"]
[White "Korchmar, Vasiliy"]
[Black "Seo, Jung Min"]
[WhiteFideId "24131750"]
[BlackFideId "1734687"]
[WhiteElo "2370"]
[BlackElo "2401"]
[Result "0-1"]
[Round "10"]
[TimeControl "180+1"]
[Date "2022.05.24"]
[WhiteClock "0:00:02"]
[BlackClock "0:00:05"]

1. e4 {[%clk 0:03:00]}  e5 {[%clk 0:02:59]} 2. Nf3 {[%clk 0:03:01]}  Nc6 {[%clk 0:02:57]} 3. Nc3 {[%clk 0:03:01]}  Nf6 {[%clk 0:02:57]} 4. h3 {[%clk 0:03:02]}  Bb4 {[%clk 0:02:55]} 5. Nd5 {[%clk 0:03:01]}  Bd6 {[%clk 0:02:54]} 6. Bc4 {[%clk 0:02:47]}  O-O {[%clk 0:02:43]} 7. d3 {[%clk 0:02:47]}  Nxd5 {[%clk 0:02:42]} 8. Bxd5 {[%clk 0:02:45]}  Ne7 {[%clk 0:02:36]} 9. Bb3 {[%clk 0:02:45]}  Ng6 {[%clk 0:02:34]} 10. Ng5 {[%clk 0:02:37]}  h6 {[%clk 0:02:25]} 11. Qh5 {[%clk 0:02:31]}  Qf6 {[%clk 0:02:25]} 12. g3 {[%clk 0:02:14]}  Bc5 {[%clk 0:02:20]} 13. Nf3 {[%clk 0:01:55]}  d6 {[%clk 0:02:20]} 14. h4 {[%clk 0:01:48]}  Ne7 {[%clk 0:02:12]} 15. Bg5 {[%clk 0:01:01]}  Qg6 {[%clk 0:02:11]} 16. Qxg6 {[%clk 0:01:02]}  Nxg6 {[%clk 0:02:11]} 17. Bd2 {[%clk 0:01:02]}  Be6 {[%clk 0:02:10]} 18. h5 {[%clk 0:00:55]}  Ne7 {[%clk 0:02:09]} 19. Rg1 {[%clk 0:00:48]}  Bxb3 {[%clk 0:02:07]} 20. axb3 {[%clk 0:00:49]}  f5 {[%clk 0:02:07]} 21. Ke2 {[%clk 0:00:21]}  fxe4 {[%clk 0:02:02]} 22. dxe4 {[%clk 0:00:22]}  Rf7 {[%clk 0:02:02]} 23. g4 {[%clk 0:00:19]}  Raf8 {[%clk 0:01:58]} 24. Rg3 {[%clk 0:00:19]}  a6 {[%clk 0:01:58]} 25. g5 {[%clk 0:00:18]}  hxg5 {[%clk 0:01:58]} 26. Bxg5 {[%clk 0:00:18]}  Kh8 {[%clk 0:01:55]} 27. h6 {[%clk 0:00:15]}  Ng8 {[%clk 0:01:44]} 28. hxg7+ {[%clk 0:00:07]}  Rxg7 {[%clk 0:01:44]} 29. Rh1+ {[%clk 0:00:07]}  Rh7 {[%clk 0:01:44]} 30. Rhg1 {[%clk 0:00:05]}  Ne7 {[%clk 0:01:34]} 31. Bxe7 {[%clk 0:00:03]}  Rxe7 {[%clk 0:01:34]} 32. R1g2 {[%clk 0:00:03]}  Ref7 {[%clk 0:01:31]} 33. Rh3+ {[%clk 0:00:01]}  Rh7 {[%clk 0:01:31]} 34. Rhg3 {[%clk 0:00:02]}  Rhf7 {[%clk 0:01:19]} 35. Rh3+ {[%clk 0:00:01]}  Rh7 {[%clk 0:01:19]} 36. Rhg3 {[%clk 0:00:02]}  Rh6 {[%clk 0:01:14]} 37. c3 {[%clk 0:00:02]}  a5 {[%clk 0:01:13]} 38. Ng5 {[%clk 0:00:02]}  b6 {[%clk 0:01:05]} 39. Rg4 {[%clk 0:00:03]}  b5 {[%clk 0:00:57]} 40. Nf3 {[%clk 0:00:03]}  b4 {[%clk 0:00:55]} 41. Nh4 {[%clk 0:00:03]}  Rf7 {[%clk 0:00:50]} 42. Ng6+ {[%clk 0:00:03]}  Kh7 {[%clk 0:00:49]} 43. Nh4 {[%clk 0:00:03]}  bxc3 {[%clk 0:00:45]} 44. bxc3 {[%clk 0:00:04]}  c6 {[%clk 0:00:29]} 45. Nf5 {[%clk 0:00:04]}  Rh5 {[%clk 0:00:29]} 46. f3 {[%clk 0:00:05]}  d5 {[%clk 0:00:25]} 47. Kd3 {[%clk 0:00:05]}  Rh3 {[%clk 0:00:24]} 48. Ke2 {[%clk 0:00:06]}  Rh5 {[%clk 0:00:22]} 49. R4g3 {[%clk 0:00:05]}  Bf8 {[%clk 0:00:19]} 50. Rg6 {[%clk 0:00:05]}  dxe4 {[%clk 0:00:16]} 51. fxe4 {[%clk 0:00:05]}  c5 {[%clk 0:00:16]} 52. Kd3 {[%clk 0:00:05]}  Rh3+ {[%clk 0:00:12]} 53. Kc4 {[%clk 0:00:05]}  Rd7 {[%clk 0:00:10]} 54. Kb5 {[%clk 0:00:04]}  Rxc3 {[%clk 0:00:09]} 55. R6g4 {[%clk 0:00:02]}  Rh3 {[%clk 0:00:08]} 56. Kxa5 {[%clk 0:00:02]}  Rb7 {[%clk 0:00:07]} 57. Ka6 {[%clk 0:00:02]}  Rbxb3 {[%clk 0:00:06]} 58. Rg8 {[%clk 0:00:02]}  Rh1 {[%clk 0:00:05]} 0-1


[Site "https://www.chess.com"]

[Event "Titled Tuesday Blitz May 24 Early 2022"]
[White "Kovalev, Vladislav"]
[Black "Zhigalko, Sergei"]
[WhiteFideId "13504398"]
[BlackFideId "13502956"]
[WhiteElo "2530"]
[BlackElo "2662"]
[Result "0-1"]
[Round "10"]
[TimeControl "180+1"]
[Date "2022.05.24"]
[WhiteClock "0:00:09"]
[BlackClock "0:00:05"]

1. e4 {[%clk 0:03:00]}  c5 {[%clk 0:03:00]} 2. Be2 {[%clk 0:03:01]}  Nf6 {[%clk 0:02:52]} 3. d3 {[%clk 0:03:02]}  d5 {[%clk 0:02:46]} 4. e5 {[%clk 0:03:02]}  Nfd7 {[%clk 0:02:47]} 5. f4 {[%clk 0:03:03]}  Nc6 {[%clk 0:02:45]} 6. Nf3 {[%clk 0:03:04]}  d4 {[%clk 0:02:42]} 7. Nbd2 {[%clk 0:03:02]}  Nb6 {[%clk 0:02:40]} 8. Ne4 {[%clk 0:03:02]}  Nd5 {[%clk 0:02:38]} 9. O-O {[%clk 0:03:01]}  Qb6 {[%clk 0:01:54]} 10. Re1 {[%clk 0:02:28]}  Bf5 {[%clk 0:01:50]} 11. Bf1 {[%clk 0:02:26]}  e6 {[%clk 0:01:47]} 12. Nfd2 {[%clk 0:02:08]}  Qc7 {[%clk 0:01:21]} 13. Nc4 {[%clk 0:02:06]}  O-O-O {[%clk 0:01:09]} 14. Ncd6+ {[%clk 0:01:51]}  Kb8 {[%clk 0:00:59]} 15. Bd2 {[%clk 0:01:41]}  f6 {[%clk 0:00:36]} 16. Nc4 {[%clk 0:01:07]}  fxe5 {[%clk 0:00:24]} 17. fxe5 {[%clk 0:01:08]}  Be7 {[%clk 0:00:23]} 18. a3 {[%clk 0:01:06]}  Rhf8 {[%clk 0:00:20]} 19. b4 {[%clk 0:01:05]}  Bxe4 {[%clk 0:00:15]} 20. Rxe4 {[%clk 0:01:02]}  cxb4 {[%clk 0:00:15]} 21. axb4 {[%clk 0:01:02]}  Bxb4 {[%clk 0:00:16]} 22. Bxb4 {[%clk 0:00:59]}  Ndxb4 {[%clk 0:00:09]} 23. Be2 {[%clk 0:00:53]}  Rd5 {[%clk 0:00:08]} 24. Bf3 {[%clk 0:00:52]}  Nxe5 {[%clk 0:00:04]} 25. Nxe5 {[%clk 0:00:46]}  Rxe5 {[%clk 0:00:05]} 26. Rb1 {[%clk 0:00:35]}  Nd5 {[%clk 0:00:04]} 27. Rxe5 {[%clk 0:00:23]}  Qxe5 {[%clk 0:00:04]} 28. Kh1 {[%clk 0:00:22]}  Rf7 {[%clk 0:00:04]} 29. Qd2 {[%clk 0:00:20]}  Nc3 {[%clk 0:00:04]} 30. Re1 {[%clk 0:00:19]}  Qf4 {[%clk 0:00:04]} 31. Qf2 {[%clk 0:00:17]}  e5 {[%clk 0:00:04]} 32. h3 {[%clk 0:00:13]}  g5 {[%clk 0:00:04]} 33. Rf1 {[%clk 0:00:12]}  h5 {[%clk 0:00:04]} 34. Qe1 {[%clk 0:00:12]}  Qe3 {[%clk 0:00:04]} 35. Qxe3 {[%clk 0:00:05]}  dxe3 {[%clk 0:00:05]} 36. Re1 {[%clk 0:00:06]}  e2 {[%clk 0:00:03]} 37. Kg1 {[%clk 0:00:07]}  h4 {[%clk 0:00:02]} 38. Bxe2 {[%clk 0:00:07]}  a5 {[%clk 0:00:02]} 39. Bf3 {[%clk 0:00:07]}  Re7 {[%clk 0:00:02]} 40. Kf2 {[%clk 0:00:07]}  b5 {[%clk 0:00:03]} 41. Ke3 {[%clk 0:00:08]}  b4 {[%clk 0:00:03]} 42. Kd2 {[%clk 0:00:08]}  Kc7 {[%clk 0:00:04]} 43. d4 {[%clk 0:00:07]}  e4 {[%clk 0:00:04]} 44. Bg4 {[%clk 0:00:07]}  a4 {[%clk 0:00:04]} 45. Ra1 {[%clk 0:00:07]}  a3 {[%clk 0:00:05]} 46. Ke3 {[%clk 0:00:08]}  Kd6 {[%clk 0:00:05]} 47. Rf1 {[%clk 0:00:08]}  Nd5+ {[%clk 0:00:05]} 48. Kd2 {[%clk 0:00:08]}  e3+ {[%clk 0:00:05]} 49. Kd3 {[%clk 0:00:08]}  Nf4+ {[%clk 0:00:05]} 50. Kc4 {[%clk 0:00:08]}  Nxg2 {[%clk 0:00:05]} 51. Rf6+ {[%clk 0:00:09]}  Kc7 {[%clk 0:00:06]} 52. Bf3 {[%clk 0:00:08]}  Nf4 {[%clk 0:00:05]} 53. Rc6+ {[%clk 0:00:09]}  Kd7 {[%clk 0:00:05]} 54. Ra6 {[%clk 0:00:09]}  e2 {[%clk 0:00:05]} 55. Bg4+ {[%clk 0:00:09]}  Ke8 {[%clk 0:00:05]} 56. Bxe2 {[%clk 0:00:07]}  Rxe2 {[%clk 0:00:05]} 57. Kxb4 {[%clk 0:00:08]}  Rxc2 {[%clk 0:00:05]} 58. Rxa3 {[%clk 0:00:09]}  Rh2 {[%clk 0:00:04]} 59. Ra5 {[%clk 0:00:07]}  Nxh3 {[%clk 0:00:04]} 60. Kc5 {[%clk 0:00:07]}  Nf4 {[%clk 0:00:04]} 61. Kd6 {[%clk 0:00:08]}  Rg2 {[%clk 0:00:04]} 62. d5 {[%clk 0:00:08]}  Kf7 {[%clk 0:00:04]} 63. Ra7+ {[%clk 0:00:08]}  Kf6 {[%clk 0:00:04]} 64. Ra8 {[%clk 0:00:08]}  Rd2 {[%clk 0:00:04]} 65. Rf8+ {[%clk 0:00:09]}  Kg7 {[%clk 0:00:05]} 0-1


[Site "https://www.chess.com"]